bitfinex/quotes_SOLUSD_20241215
["timestamp","ask_amount","ask_price","bid_price","bid_amount"]
[1734249912701,23.776884,217.06,216.96,12.6268611]
[1734249913083,20.0,217.07,216.97,12.6268611]
[1734249913284,20.0,217.07,216.92,33.31811036]
[1734249913285,20.0,217.07,216.98,12.6268611]
[1734249914807,20.0,217.07,216.97,12.6268611]
[1734249915611,20.0,217.07,216.98,12.6268611]
[1734249915820,20.0,217.07,216.99,12.6268611]
[1734249916192,20.0,217.07,216.98,12.6268611]
[1734249917020,20.0,217.07,216.99,12.6268611]
[1734249917192,20.0,217.07,216.98,12.6268611]
[1734249918206,20.0,217.07,216.97,12.6268611]
[1734249920433,20.0,217.07,216.98,12.6268611]
[1734249921310,20.0,217.07,216.98,8.07303084]
[1734249921724,20.0,217.07,217.0,8.07303084]
[1734249922048,20.0,217.07,217.01,8.07303084]
[1734249923124,20.0,217.07,217.02,8.07303084]
[1734249923322,7.1991442,217.1,216.98,0.12549]
[1734249923522,7.1991442,217.1,217.09,8.07303084]
[1734249923523,0.5617442,217.1,217.09,8.07303084]
[1734249925216,0.5617442,217.1,217.09,12.59766731]
[1734249926827,0.12549,217.26,217.09,12.59766731]
[1734249927024,0.12549,217.26,217.12,12.59766731]
[1734249927428,0.12549,217.26,217.13,12.59766731]
[1734249927624,23.776884,217.22,217.15,12.59766731]
[1734249927809,20.0,217.19,217.15,12.59766731]
[1734249928347,23.776884,217.23,217.15,12.59766731]
[1734249928556,20.0,217.2,217.15,12.59766731]
[1734249929157,20.0,217.24,217.17,12.59766731]
[1734249930135,20.0,217.24,217.16,12.59766731]
[1734249933847,20.0,217.24,217.1,0.12549]
[1734249933848,20.0,217.24,217.17,12.59766731]
[1734249934048,6.6253442,217.27,217.19,12.59766731]
[1734249934238,6.6253442,217.27,217.2,12.59766731]
[1734249934239,6.4993,217.27,217.2,12.59766731]
[1734249934438,6.4993,217.27,217.21,12.59766731]
[1734249935540,24.166984,217.31,217.21,12.59766731]
[1734249935741,20.0,217.28,217.21,12.59766731]
[1734249935952,20.0,217.28,217.22,12.59766731]
[1734249936457,20.0,217.28,217.23,12.59766731]
[1734249936667,7.1876442,217.32,217.24,12.59766731]
[1734249937052,7.1876442,217.32,217.17,0.69044982]
[1734249937253,7.1876442,217.32,217.12,141.2391]
[1734249937254,0.12549,217.3,217.12,141.2391]
[1734249937563,0.12549,217.3,217.15,12.59766731]
[1734249937868,20.0,217.28,217.14,12.59766731]
[1734249938067,20.0,217.24,217.14,12.59766731]
[1734249938251,20.0,217.24,217.12,141.2391]
[1734249938252,20.0,217.24,217.15,12.59766731]
[1734249939553,20.0,217.24,217.13,14.20996731]
[1734249939967,20.0,217.24,217.15,12.59766731]
[1734249940646,20.0,217.24,217.14,12.59766731]
[1734249944653,20.0,217.2,217.07,7.18801392]
[1734249944854,20.0,217.2,217.09,26.54766731]
[1734249945261,20.0,217.2,217.09,22.01397166]
[1734249945679,20.0,217.2,217.09,8.06397166]
[1734249946051,0.3901,217.27,217.19,8.06397166]
[1734249946256,0.3901,217.27,217.22,8.06397166]
[1734249946766,6.1255,217.3,217.22,8.06397166]
[1734249946969,6.1255,217.3,217.23,8.06397166]
[1734249947279,6.1255,217.3,217.22,12.58431824]
[1734249947486,20.0,217.27,217.22,12.58431824]
[1734249947860,20.0,217.27,217.21,12.58431824]
[1734249948763,20.0,217.27,217.19,12.58431824]
[1734249951881,0.12549,217.22,217.15,0.69044294]
[1734249952081,0.12549,217.22,217.1,6.80969127]
[1734249952082,0.12549,217.15,216.98,22.58431824]
[1734249952383,23.902374,217.16,216.98,10.0]
[1734249952384,20.0,217.13,216.98,10.0]
[1734249952684,23.776884,217.12,216.98,10.0]
[1734249952867,20.0,217.09,216.98,10.0]
[1734249953276,3.07514514,217.08,216.99,0.12549]
[1734249954591,3.07514514,217.08,216.98,10.0]
[1734249955483,20.0,217.12,216.98,10.69110823]
[1734249955684,0.3901,217.11,216.98,10.69110823]
[1734249955912,20.0,217.03,216.98,10.0]
[1734249956669,24.027864,217.06,216.98,10.0]
[1734249956870,20.0,217.03,216.98,10.0]
[1734249959379,30.0,217.03,216.98,10.0]
[1734249960886,49.942784,216.99,216.98,10.0]
[1734249961088,20.0,216.95,216.88,1.6008]
[1734249962389,20.0,216.91,216.82,1.5167]
[1734249966969,23.776884,216.98,216.83,13.27593568]
[1734249967184,23.776884,216.98,216.84,12.58431824]
[1734249967380,23.776884,216.98,216.83,0.69161744]
[1734249967579,23.776884,216.98,216.83,13.27593568]
[1734249967777,23.776884,216.98,216.84,12.58431824]
[1734249967981,6.1659,216.99,216.86,12.58431824]
[1734249968291,6.1659,216.99,216.87,0.69145106]
[1734249968889,6.1659,216.99,216.87,13.2757693]
[1734249969603,20.0,216.96,216.86,12.58431824]
[1734249970101,20.0,216.96,216.87,12.58431824]
[1734249970969,20.0,216.96,216.88,13.27574513]
[1734249971374,6.1659,216.99,216.9,12.58431824]
[1734249971984,6.1659,216.99,216.9,13.27563324]
[1734249972190,10.0,217.03,216.9,13.27563324]
[1734249972191,20.0,217.0,216.9,13.27563324]
[1734249972375,20.0,217.0,216.91,12.58431824]
[1734249972984,10.0,217.03,216.92,13.27559969]
[1734249973670,6.3656,217.04,216.93,12.58431824]
[1734249974088,6.3656,217.04,216.94,0.69122869]
[1734249974374,6.3656,217.04,216.94,13.27554693]
[1734249974775,6.3656,217.04,216.95,12.58431824]
[1734249974989,0.3901,217.06,216.95,13.27547307]
[1734249975179,6.3656,217.1,216.95,13.27547307]
[1734249975384,6.3656,217.1,216.94,12.58431824]
[1734249975578,15.74176177,217.08,216.95,0.12549]
[1734249976186,20.0,217.05,216.95,0.12549]
[1734249977496,20.0,217.05,216.95,12.58431824]
[1734249978086,6.3656,217.1,216.98,12.58431824]
[1734249978286,12.584319,217.06,216.94,12.58431824]
[1734249978599,12.584319,217.06,216.93,12.58431824]
[1734249979102,12.584319,217.06,216.95,12.58431824]
[1734249979411,20.0,217.03,216.94,12.58431824]
[1734249979823,0.12549,217.09,216.97,12.58431824]
[1734249979824,20.0,217.07,216.97,12.58431824]
[1734249979994,20.0,217.06,216.97,12.58431824]
[1734249980320,20.0,217.04,216.97,12.58431824]
[1734249980826,20.0,217.04,216.96,12.58431824]
[1734249981399,20.0,217.07,216.97,13.27548947]
[1734249981830,20.0,217.06,216.97,13.27548947]
[1734249982337,6.97812192,217.1,216.99,12.58431824]
[1734249982621,86.7,217.21,217.01,12.58431824]
[1734249982622,13.27549,217.11,217.01,12.58431824]
[1734249982928,5.35166177,217.15,217.03,12.58431824]
[1734249983102,12.584318,217.14,217.03,12.58431824]
[1734249983312,5.35166177,217.15,217.03,12.58431824]
[1734249983603,5.35166177,217.15,217.04,12.58431824]
[1734249983604,17.93597977,217.15,217.04,12.58431824]
[1734249983788,5.35166177,217.15,217.04,12.58431824]
[1734249984716,20.0,217.12,217.05,13.27521712]
[1734249984912,20.0,217.13,217.05,13.27521712]
[1734249985814,33.275217,217.17,217.06,12.58431824]
[1734249986009,20.0,217.17,217.05,13.27514238]
[1734249986515,18.423894,217.18,217.06,12.58431824]
[1734249986743,18.423894,217.18,217.07,12.58431824]
[1734249986890,5.35166177,217.2,217.07,12.58431824]
[1734249987087,5.35166177,217.2,217.05,0.69080604]
[1734249987088,23.776884,217.19,217.06,12.58431824]
[1734249987289,23.776884,217.19,217.03,0.12549]
[1734249987531,28.64915948,217.19,217.03,0.12549]
[1734249988144,20.0,217.16,217.03,0.12549]
[1734249988524,20.0,217.16,217.02,0.69083507]
[1734249988841,20.0,217.16,217.02,13.27515331]
[1734249989449,20.0,217.16,217.03,12.58431824]
[1734249991151,4.87227548,217.19,217.1,12.58431824]
[1734249991351,18.423245,217.2,217.12,12.58431824]
[1734249991779,6.3624,217.28,217.12,12.58431824]
[1734249992153,0.12549,217.27,217.12,12.58431824]
[1734249992353,6.3624,217.28,217.12,12.58431824]
[1734249992527,12.584318,217.25,217.13,12.58431824]
[1734249993124,23.776884,217.24,217.13,12.58431824]
[1734249993531,6.3624,217.28,217.13,12.58431824]
[1734249994043,12.584318,217.26,217.15,12.58431824]
[1734249994345,6.3624,217.28,217.15,12.58431824]
[1734249994551,6.3624,217.28,217.13,12.58431824]
[1734249994732,6.3624,217.28,217.12,12.58431824]
[1734249995106,20.0,217.24,217.13,12.58431824]
[1734249995309,20.0,217.25,217.15,12.58431824]
[1734249995525,20.0,217.25,217.16,12.58431824]
[1734249996023,20.0,217.25,217.15,12.58431824]
[1734249996227,20.0,217.25,217.14,12.58431824]
[1734249996535,20.0,217.25,217.13,0.69062767]
[1734249996536,20.0,217.25,217.13,12.58431824]
[1734249997108,20.0,217.25,217.14,12.58431824]
[1734249997730,20.0,217.25,217.13,12.58431824]
[1734249997920,20.0,217.21,217.12,12.58431824]
[1734250001034,20.0,217.21,217.13,12.58431824]
[1734250002933,6.3624,217.28,217.15,12.58431824]
[1734250003141,20.0,217.24,217.15,12.58431824]
[1734250004439,20.0,217.24,217.12,12.58431824]
[1734250004440,23.776884,217.23,217.12,12.58431824]
[1734250004645,20.0,217.2,217.06,14.16561824]
[1734250004832,20.0,217.16,217.08,11.71]
[1734250005029,20.0,217.16,217.06,1.5813]
[1734250005817,20.0,217.16,217.06,14.16561824]
[1734250006232,20.0,217.16,217.06,1.5813]
[1734250007541,20.0,217.16,217.02,12.70980824]
[1734250007850,20.0,217.12,217.01,25.91481824]
[1734250008215,20.0,217.12,217.01,14.19481824]
[1734250008435,20.0,217.12,217.02,12.58431824]
[1734250008637,20.0,217.12,217.03,12.58431824]
[1734250009830,20.0,217.12,217.04,12.58431824]
[1734250011524,20.0,217.12,217.03,12.58431824]
[1734250012335,20.0,217.16,217.03,12.58431824]
[1734250012534,20.0,217.16,217.04,12.58431824]
[1734250012734,20.0,217.16,217.05,12.58431824]
[1734250014041,20.0,217.16,217.06,12.58431824]
[1734250014754,20.0,217.16,217.05,13.40063585]
[1734250014955,20.0,217.16,217.06,12.58431824]
[1734250015326,12.584318,217.15,217.06,12.58431824]
[1734250017231,20.0,217.16,217.06,12.58431824]
[1734250017429,20.0,217.16,217.05,0.81631761]
[1734250017430,20.0,217.16,217.07,12.58431824]
[1734250017634,32.584318,217.16,217.06,12.58431824]
[1734250017847,32.584318,217.16,217.05,0.81631761]
[1734250017848,32.584318,217.16,217.05,12.58431824]
[1734250018028,32.584318,217.16,217.04,12.58431824]
[1734250019035,32.584318,217.16,217.03,12.58431824]
[1734250019835,32.584318,217.16,217.04,12.58431824]
[1734250020058,32.584318,217.16,217.05,12.58431824]
[1734250020433,32.584318,217.16,217.04,0.69086177]
[1734250020434,32.584318,217.16,217.06,12.58431824]
[1734250020640,32.584318,217.16,217.07,12.58431824]
[1734250020836,20.0,217.16,217.07,12.58431824]
[1734250021251,6.2132,217.19,217.07,12.58431824]
[1734250021635,12.584318,217.18,217.07,12.58431824]
[1734250023555,12.584318,217.18,217.08,12.58431824]
[1734250023764,12.584318,217.18,217.11,12.58431824]
[1734250023939,12.584318,217.18,217.15,12.58431824]
[1734250024458,6.5451,217.25,217.16,12.58431824]
[1734250024762,82.2617442,217.32,217.18,12.58431824]
[1734250024763,6.9352,217.31,217.18,12.58431824]
[1734250025055,6.5451,217.26,217.18,12.58431824]
[1734250025357,6.9352,217.31,217.18,12.58431824]
[1734250025567,6.9352,217.3,217.2,12.58431824]
[1734250025860,6.9352,217.3,217.21,12.58431824]
[1734250026085,6.9352,217.3,217.2,12.70980824]
[1734250026444,6.9352,217.3,217.21,13.94]
[1734250027466,6.9352,217.3,217.22,0.69036128]
[1734250027961,6.5451,217.31,217.22,13.27467952]
[1734250028346,13.4803,217.31,217.22,13.27467952]
[1734250031453,13.4803,217.31,217.21,13.94]
[1734250031646,20.0,217.28,217.21,13.94]
[1734250032059,23.776884,217.27,217.21,13.94]
[1734250032272,20.0,217.24,217.13,12.58431824]
[1734250033165,20.0,217.24,217.14,12.58431824]
[1734250033562,20.0,217.24,217.13,12.58431824]
[1734250035370,20.0,217.24,217.06,139.7]
[1734250035371,20.0,217.2,217.07,0.6906108]
[1734250035566,20.0,217.2,217.09,12.58431824]
[1734250035768,20.0,217.2,217.1,14.22001824]
[1734250036879,20.0,217.2,217.13,12.58431824]
[1734250037249,20.0,217.2,217.11,13.27501705]
[1734250038679,6.5939,217.19,217.11,0.69069881]
[1734250038975,6.5939,217.19,216.93,12.58431824]
[1734250038976,20.0,217.1,216.93,12.58431824]
[1734250039173,23.776884,217.13,216.94,12.58431824]
[1734250039174,20.0,217.06,216.94,12.58431824]
[1734250040272,20.0,217.06,216.95,12.58431824]
[1734250040471,20.0,217.06,216.96,12.58431824]
[1734250041966,20.0,217.08,217.0,12.58431824]
[1734250042554,20.0,217.11,217.01,12.58431824]
[1734250043071,20.0,217.11,217.0,12.70980824]
[1734250043777,20.0,217.11,217.01,0.12549]
[1734250043961,20.0,217.11,216.98,12.58431824]
[1734250045072,20.0,217.11,216.99,0.12549]
[1734250045472,20.0,217.11,216.98,0.12549]
[1734250045776,20.0,217.08,216.98,0.12549]
[1734250045988,20.0,217.08,216.95,12.58431824]
[1734250046163,2.70673249,217.1,216.95,12.58431824]
[1734250046164,23.776884,217.09,216.95,12.58431824]
[1734250046358,20.0,217.06,216.96,0.12549]
[1734250047981,2.70673249,217.1,216.98,12.58431824]
[1734250048189,2.70673249,217.1,216.99,0.12549]
[1734250048887,2.70673249,217.1,216.99,12.70980824]
[1734250049389,2.70673249,217.1,216.99,0.12549]
[1734250049769,12.709808,217.09,216.99,0.12549]
[1734250051064,12.709808,217.09,216.99,12.70980824]
[1734250051269,12.709808,217.09,216.99,13.40085805]
[1734250052367,12.709808,217.09,217.01,0.12549]
[1734250052566,20.0,217.11,217.01,0.12549]
[1734250052768,20.0,217.11,217.01,0.25098]
[1734250053381,32.709808,217.11,217.01,12.83529824]
[1734250053694,20.0,217.11,217.01,13.52627129]
[1734250054213,12.835298,217.12,217.01,13.52627129]
[1734250055802,12.835298,217.12,217.01,0.94195305]
[1734250056017,20.0,217.11,217.04,0.12549]
[1734250056203,6.2038,217.14,217.04,0.94187289]
[1734250057600,6.2038,217.14,217.04,13.52619113]
[1734250057981,12.835298,217.15,217.06,0.12549]
[1734250058186,6.60955158,217.19,217.06,13.40063121]
[1734250058187,20.0,217.17,217.06,13.40063121]
[1734250058794,20.0,217.17,217.06,0.81631297]
[1734250058984,20.0,217.15,217.06,0.81631297]
[1734250062215,20.0,217.15,217.06,13.40063121]
[1734250062807,20.0,217.15,217.06,0.81631297]
[1734250063812,20.0,217.15,217.06,13.40063121]
[1734250065012,12.584318,217.18,217.06,0.81631297]
[1734250065212,12.584318,217.18,217.08,12.58431824]
[1734250065401,12.584318,217.18,217.08,0.12549]
[1734250066005,12.584318,217.18,217.06,0.25098]
[1734250066200,20.0,217.15,217.0,0.69076303]
[1734250066405,20.0,217.14,217.01,12.58431824]
[1734250066993,20.0,217.14,217.04,12.70980824]
[1734250068223,20.0,217.14,217.06,0.12549]
[1734250068517,20.0,217.14,217.06,0.81631327]
[1734250069404,5.40207172,217.15,217.06,0.81631327]
[1734250069405,20.0,217.15,217.06,0.69082327]
[1734250070411,20.0,217.17,217.06,0.69082327]
[1734250073509,20.0,217.17,217.07,1.5827]
[1734250074403,20.0,217.17,217.08,0.69082618]
[1734250074602,10.98994858,217.2,217.08,0.69082618]
[1734250074810,6.5553,217.2,217.08,0.69082618]
[1734250075626,6.31476426,217.21,217.08,0.69082618]
[1734250076203,20.0,217.18,217.08,0.69082618]
[1734250083025,20.0,217.18,217.07,8.0124]
[1734250085828,20.0,217.18,217.07,8.70319645]
[1734250088439,20.0,217.18,217.08,0.25098]
[1734250088731,20.0,217.22,217.1,8.31667309]
[1734250089315,22.82553462,217.22,217.11,0.69066957]
[1734250091040,22.82553462,217.22,217.1,0.12549]
[1734250092322,22.82553462,217.22,217.09,0.69066211]
[1734250092516,22.82553462,217.22,217.07,16.76887383]
[1734250092718,22.82553462,217.22,217.08,0.12549]
[1734250093017,22.82553462,217.22,217.07,16.76887383]
[1734250093244,0.12549,217.21,217.07,16.76887383]
[1734250093617,22.82553462,217.22,217.08,0.12549]
[1734250093815,22.82553462,217.22,217.07,16.76879919]
[1734250094226,22.82553462,217.22,217.08,0.69081901]
[1734250096229,20.0,217.18,217.08,0.69081901]
[1734250096424,20.0,217.18,217.07,8.0124]
[1734250097541,20.0,217.18,217.07,16.07809309]
[1734250099725,20.0,217.17,217.07,8.0124]
[1734250100248,20.0,217.18,217.07,8.0124]
[1734250101052,20.0,217.14,217.07,1.5827]
[1734250101223,20.0,217.14,217.02,6.3329]
[1734250101224,0.12549,217.13,217.02,7.867]
[1734250101430,20.0,217.1,217.02,7.867]
[1734250101647,20.0,217.09,217.02,7.867]
[1734250102150,5.03532844,217.12,217.02,7.867]
[1734250102323,5.03532844,217.12,217.02,15.93269309]
[1734250104654,20.0,217.14,217.02,15.93269309]
[1734250105237,20.0,217.14,217.04,8.06569309]
[1734250108659,20.0,217.14,217.05,8.06569309]
[1734250110757,20.0,217.14,217.07,8.06569309]
[1734250111071,11.27184617,217.17,217.08,8.756523]
[1734250111072,5.03532844,217.17,217.08,8.756523]
[1734250111569,14.98058379,217.22,217.1,14.14959309]
[1734250111926,14.98058379,217.22,217.12,8.06569309]
[1734250111927,2.82553462,217.22,217.12,8.06569309]
[1734250112159,2.82553462,217.22,217.1,6.0839]
[1734250112160,2.82553462,217.22,217.11,8.06569309]
[1734250112551,2.82553462,217.22,217.1,14.84027726]
[1734250112939,20.0,217.18,217.1,6.0839]
[1734250115060,5.06632736,217.23,217.1,6.0839]
[1734250115061,20.0,217.2,217.1,6.0839]
[1734250115438,20.0,217.2,217.11,13.95]
[1734250117265,20.0,217.2,217.1,6.0839]
[1734250118966,21.87172361,217.21,217.1,6.0839]
[1734250119169,0.12549,217.2,217.1,6.0839]
[1734250120368,0.12549,217.2,217.11,13.95]
[1734250120750,0.12549,217.2,217.1,6.0839]
[1734250121353,20.0,217.17,217.07,1.5965]
[1734250121545,20.0,217.17,217.08,13.95]
[1734250128464,0.12549,217.16,217.08,13.95]
[1734250128663,20.12549,217.16,217.08,13.95]
[1734250130675,20.12549,217.16,217.07,1.5965]
[1734250132160,0.25098,217.06,216.98,1.5957]
[1734250132469,20.0,217.03,216.98,1.5957]
[1734250135269,20.0,217.02,216.98,1.5957]
[1734250135582,20.0,217.02,216.93,1.5957]
[1734250143187,34.241993,217.02,216.93,1.5957]
[1734250143561,5.34906268,217.08,216.94,0.69128705]
[1734250143778,8.065694,217.08,216.98,8.06569309]
[1734250144171,1.86734591,217.11,217.0,1.5957]
[1734250144374,8.065693,217.11,217.0,1.5957]
[1734250145259,20.0,217.08,217.0,1.5957]
[1734250147088,20.0,217.08,217.01,12.612256]
[1734250147270,20.0,217.1,217.01,13.30332497]
[1734250147775,20.0,217.1,217.01,27.25332497]
[1734250149577,6.4092,217.18,217.02,12.612256]
[1734250149977,24.39095592,217.15,217.02,12.612256]
[1734250150492,24.39095592,217.15,217.03,12.612256]
[1734250150991,20.0,217.12,217.01,13.95]
[1734250151367,20.0,217.12,217.0,14.207956]
[1734250153891,20.0,217.12,217.01,13.30327725]
[1734250156484,20.0,217.12,217.02,12.612256]
[1734250157272,20.0,217.12,217.01,0.69102125]
[1734250157473,20.0,217.12,217.0,1.5957]
[1734250157897,20.0,217.12,217.0,14.207956]
[1734250158098,20.0,217.12,217.02,12.612256]
[1734250158296,20.0,217.12,217.03,12.612256]
[1734250158473,21.83676256,217.15,217.03,12.612256]
[1734250158883,34.44901856,217.15,217.03,12.612256]
[1734250159183,6.4092,217.18,217.04,13.30318312]
[1734250159997,12.612256,217.17,217.04,13.30318312]
[1734250160797,20.0,217.14,217.04,13.30318312]
[1734250161581,20.0,217.14,217.05,12.612256]
[1734250161784,20.0,217.14,217.0,1.5957]
[1734250161785,20.0,217.15,217.06,13.30311757]
[1734250163999,20.0,217.17,217.08,12.612256]
[1734250164597,6.2734,217.23,217.11,12.612256]
[1734250165900,20.0,217.21,217.12,12.612256]
[1734250166104,4.1404951,217.24,217.12,12.612256]
[1734250166605,18.57623692,217.26,217.13,12.612256]
[1734250166904,20.43817276,217.26,217.13,12.612256]
[1734250167328,20.0,217.23,217.13,8.06134536]
[1734250169675,20.43817276,217.26,217.15,8.06134536]
[1734250169676,12.612256,217.26,217.15,8.06134536]
[1734250169880,10.8039951,217.29,217.15,8.06134536]
[1734250170102,8.061346,217.28,217.15,8.06134536]
[1734250171093,20.0,217.25,217.15,8.06134536]
[1734250171283,20.0,217.25,217.16,8.06134536]
[1734250171490,20.0,217.25,217.15,8.06134536]
[1734250172497,20.0,217.25,217.14,14.12074536]
[1734250172703,20.0,217.25,217.14,6.0594]
[1734250173225,20.0,217.25,217.11,1.515]
[1734250174036,24.1404951,217.25,217.11,1.515]
[1734250174684,24.027864,217.24,217.11,1.515]
[1734250174886,24.027864,217.24,217.06,1.6107]
[1734250174887,0.12549,217.2,217.06,1.6107]
[1734250175199,0.12549,217.2,217.06,9.67204536]
[1734250175586,20.0,217.21,217.06,9.67204536]
[1734250175786,20.0,217.21,217.06,1.6107]
[1734250175987,20.0,217.21,217.07,8.06134536]
[1734250176693,20.0,217.21,217.08,8.75213331]
[1734250176904,20.0,217.21,217.09,8.06134536]
[1734250177205,24.1404951,217.23,217.1,0.69072399]
[1734250177604,24.1404951,217.23,217.09,8.06134536]
[1734250179301,20.0,217.24,217.09,8.06134536]
[1734250179502,20.0,217.24,217.1,8.06134536]
[1734250179810,20.0,217.24,217.11,8.06134536]
[1734250181107,20.0,217.24,217.13,8.06134536]
[1734250181411,20.0,217.23,217.13,8.06134536]
[1734250182616,3.68648898,217.3,217.14,8.06134536]
[1734250182791,9.90968298,217.28,217.14,8.06134536]
[1734250182991,9.90968298,217.28,217.15,1.6107]
[1734250184320,20.0,217.25,217.15,1.6107]
[1734250185798,1.84833698,217.28,217.17,8.06134536]
[1734250185999,3.29638898,217.3,217.17,8.06134536]
[1734250186201,3.29638898,217.3,217.18,8.06134536]
[1734250187097,20.0,217.28,217.18,8.06134536]
[1734250187301,20.0,217.27,217.18,8.06134536]
[1734250187717,20.0,217.27,217.17,8.06134536]
[1734250187915,20.0,217.27,217.16,0.69057963]
[1734250188219,20.0,217.27,217.15,16.08504536]
[1734250189021,20.0,217.27,217.15,1.6107]
[1734250189216,0.12549,217.26,217.15,1.6107]
[1734250189516,24.027864,217.26,217.15,1.6107]
[1734250189824,20.0,217.23,217.15,1.6107]
[1734250200031,28.061346,217.23,217.15,1.6107]
[1734250200411,28.061346,217.23,217.09,1.5757]
[1734250200412,20.0,217.19,217.09,1.5757]
[1734250201318,20.0,217.19,217.09,9.63704536]
[1734250201526,2.78705317,217.22,217.11,8.06134536]
[1734250202117,2.78705317,217.22,217.12,8.06134536]
[1734250202314,8.061346,217.23,217.15,8.06134536]
[1734250203536,8.80537381,217.28,217.12,0.69071087]
[1734250203537,8.80537381,217.28,217.17,8.06134536]
[1734250203710,8.061346,217.25,217.17,8.06134536]
[1734250203914,8.061346,217.25,217.17,9.63704536]
[1734250204936,8.061346,217.25,217.18,8.06134536]
[1734250205233,2.84139289,217.28,217.18,8.06134536]
[1734250205441,8.061345,217.27,217.18,8.06134536]
[1734250206251,20.0,217.24,217.17,1.5757]
[1734250210526,8.061345,217.27,217.17,1.5757]
[1734250212441,8.061345,217.27,217.17,9.63704536]
[1734250214236,8.061345,217.27,217.17,1.5757]
[1734250217035,20.0,217.24,217.14,8.06134536]
[1734250217232,20.0,217.24,217.13,8.06134536]
[1734250218328,20.0,217.24,217.11,9.64374536]
[1734250218533,20.0,217.2,217.11,1.5824]
[1734250218742,20.0,217.2,217.08,8.06134536]
[1734250218937,20.0,217.2,217.09,8.06134536]
[1734250219166,20.0,217.2,217.07,6.87369565]
[1734250219468,20.0,217.2,217.08,8.06134536]
[1734250220464,20.0,217.2,217.07,8.06134536]
[1734250221634,20.0,217.2,217.06,9.64374536]
[1734250223335,20.0,217.2,217.07,8.06134536]
[1734250224224,20.0,217.2,217.06,1.5824]
[1734250224850,20.0,217.2,217.09,8.06134536]
[1734250227645,21.85820602,217.2,217.09,8.06134536]
[1734250228045,21.85820602,217.2,217.06,1.5824]
[1734250228046,20.0,217.16,217.06,1.5824]
[1734250228228,20.0,217.16,217.01,0.69084685]
[1734250228229,6.44709,217.15,217.01,1.5432]
[1734250228429,20.0,217.12,217.01,1.5432]
[1734250228635,20.0,217.12,216.97,6.1511]
[1734250228860,20.0,217.12,216.99,8.06134536]
[1734250229165,0.12549,217.11,216.98,8.06134536]
[1734250229342,20.12549,217.11,216.98,8.06134536]
[1734250229727,0.12549,217.11,216.98,8.06134536]
[1734250230429,0.12549,217.11,216.96,1.6555]
[1734250230430,0.12549,217.11,216.99,8.06134536]
[1734250230631,23.24204926,217.12,217.01,8.06134536]
[1734250230841,20.0,217.12,217.02,8.06134536]
[1734250233781,6.3216,217.15,217.05,8.06134536]
[1734250233981,6.3216,217.15,217.06,8.06134536]
[1734250235381,6.3216,217.15,217.06,12.60407153]
[1734250236556,20.0,217.16,217.07,12.60407153]
[1734250236752,20.0,217.16,217.08,12.60407153]
[1734250237891,20.0,217.17,217.08,12.60407153]
[1734250238768,20.0,217.17,217.09,12.60407153]
[1734250239600,6.5449,217.2,217.06,43.902374]
[1734250239813,6.5449,217.2,217.12,12.60407153]
[1734250241404,6.5449,217.2,217.11,12.60407153]
[1734250242171,6.5449,217.2,217.07,12.60407153]
[1734250242575,6.5449,217.2,217.08,12.60407153]
[1734250244665,6.5449,217.2,217.09,12.60407153]
[1734250246376,6.5449,217.2,217.06,13.29489971]
[1734250246578,20.0,217.17,217.06,13.29489971]
[1734250246901,20.0,217.17,217.06,12.60407153]
[1734250248578,20.0,217.17,217.03,12.60407153]
[1734250249568,0.25098,217.16,217.03,12.60407153]
[1734250251191,20.0,217.17,217.05,12.60407153]
[1734250252413,0.12549,217.16,217.03,12.60407153]
[1734250252610,0.25098,217.16,217.03,12.60407153]
[1734250253679,0.25098,217.16,217.02,12.60407153]
[1734250256622,0.25098,217.16,217.03,12.60407153]
[1734250257323,0.25098,217.16,217.03,8.06835337]